[Event "*** SCC Grand Prix: Titled Tuesday Blitz"]
[Site "Chess.com"]
[Date "2020.09.08"]
[Round "1"]
[White "zaur-mammadov"]
[Black "GaboSalazar2001"]
[Result "1-0"]
[WhiteElo "2671"]
[BlackElo "2334"]
[TimeControl "180+1"]
[EndTime "10:01:34 PDT"]
[Termination "zaur-mammadov won by resignation"]

1. e4 {[%clk 0:03:00.2]} 1... c5 {[%clk 0:03:00.3]} 2. c3 {[%clk 0:02:59.9]}
2... Nf6 {[%clk 0:02:59.3]} 3. e5 {[%clk 0:02:59.6]} 3... Nd5 {[%clk 0:03:00]}
4. Nf3 {[%clk 0:02:59.3]} 4... e6 {[%clk 0:02:58.7]} 5. d4 {[%clk 0:02:59.8]}
5... cxd4 {[%clk 0:02:58.8]} 6. cxd4 {[%clk 0:03:00.7]} 6... b6 {[%clk
0:02:58.6]} 7. Bd3 {[%clk 0:03:00.8]} 7... Ba6 {[%clk 0:02:57.7]} 8. Bxa6 {[%clk
0:02:58.2]} 8... Nxa6 {[%clk 0:02:58.6]} 9. O-O {[%clk 0:02:56.5]} 9... Be7
{[%clk 0:02:57]} 10. h4 {[%clk 0:02:54.5]} 10... O-O {[%clk 0:02:34.2]} 11. Bg5
{[%clk 0:02:54.2]} 11... f6 {[%clk 0:02:30]} 12. exf6 {[%clk 0:02:52.2]} 12...
Bxf6 {[%clk 0:02:29.7]} 13. Nc3 {[%clk 0:02:49.5]} 13... Nxc3 {[%clk 0:02:29.3]}
14. bxc3 {[%clk 0:02:50.4]} 14... Rc8 {[%clk 0:02:29.4]} 15. Qd3 {[%clk
0:02:50.2]} 15... Qc7 {[%clk 0:02:26]} 16. Qxa6 {[%clk 0:02:48.8]} 1-0

[Event "*** SCC Grand Prix: Titled Tuesday Blitz"]
[Site "Chess.com"]
[Date "2020.09.08"]
[Round "1"]
[White "OhanyanEminChess"]
[Black "WinstonSilvakov"]
[Result "1-0"]
[WhiteElo "2519"]
[BlackElo "2142"]
[TimeControl "180+1"]
[EndTime "10:02:17 PDT"]
[Termination "OhanyanEminChess won by resignation"]

1. e4 {[%clk 0:02:54.6]} 1... Nf6 {[%clk 0:02:59.2]} 2. Nc3 {[%clk 0:02:54.4]}
2... d5 {[%clk 0:02:55.9]} 3. e5 {[%clk 0:02:49.1]} 3... Nfd7 {[%clk 0:02:54.2]}
4. e6 {[%clk 0:02:49.5]} 4... fxe6 {[%clk 0:02:51.7]} 5. d4 {[%clk 0:02:49.9]}
5... Nf6 {[%clk 0:02:49.4]} 6. g4 {[%clk 0:02:48.3]} 6... c5 {[%clk 0:02:47.8]}
7. g5 {[%clk 0:02:47.5]} 7... Nfd7 {[%clk 0:02:48.2]} 8. Bd3 {[%clk 0:02:46.5]}
8... g6 {[%clk 0:02:43.9]} 9. h4 {[%clk 0:02:46.6]} 9... cxd4 {[%clk 0:02:39.7]}
10. h5 {[%clk 0:02:46.6]} 10... Bg7 {[%clk 0:02:18.8]} 11. hxg6 {[%clk
0:02:46.6]} 11... dxc3 {[%clk 0:02:15.5]} 12. Rxh7 {[%clk 0:02:44.6]} 12... Rxh7
{[%clk 0:01:52.9]} 13. gxh7 {[%clk 0:02:45.5]} 13... cxb2 {[%clk 0:01:46.3]} 14.
Qh5+ {[%clk 0:02:42.3]} 14... Kf8 {[%clk 0:01:45.6]} 15. h8=Q+ {[%clk
0:02:43.2]} 1-0

[Event "*** SCC Grand Prix: Titled Tuesday Blitz"]
[Site "Chess.com"]
[Date "2020.09.08"]
[Round "1"]
[White "AniJak"]
[Black "Gorin_Leonid"]
[Result "1-0"]
[WhiteElo "2345"]
[BlackElo "2642"]
[TimeControl "180+1"]
[EndTime "10:03:08 PDT"]
[Termination "AniJak won by checkmate"]

1. e4 {[%clk 0:03:00.9]} 1... e5 {[%clk 0:02:59.1]} 2. Nc3 {[%clk 0:03:00.8]}
2... Nc6 {[%clk 0:02:58.8]} 3. g3 {[%clk 0:03:01]} 3... Bb4 {[%clk 0:02:58.2]}
4. Bg2 {[%clk 0:03:00.8]} 4... Bxc3 {[%clk 0:02:58.2]} 5. bxc3 {[%clk
0:03:00.3]} 5... Nge7 {[%clk 0:02:57.7]} 6. c4 {[%clk 0:02:52.6]} 6... d6 {[%clk
0:02:54.9]} 7. d3 {[%clk 0:02:52.1]} 7... f5 {[%clk 0:02:54.3]} 8. exf5 {[%clk
0:02:49.7]} 8... Bxf5 {[%clk 0:02:53]} 9. Rb1 {[%clk 0:02:49.6]} 9... b6 {[%clk
0:02:52.2]} 10. Bg5 {[%clk 0:02:45.7]} 10... Bd7 {[%clk 0:02:34.1]} 11. Qh5+
{[%clk 0:02:39]} 11... g6 {[%clk 0:02:32.6]} 12. Qh4 {[%clk 0:02:34.5]} 12...
Rb8 {[%clk 0:02:30.8]} 13. Ne2 {[%clk 0:02:24.6]} 13... h6 {[%clk 0:02:11.4]}
14. O-O {[%clk 0:02:19.1]} 14... Kf7 {[%clk 0:02:08.6]} 15. Bd5+ {[%clk
0:02:07.5]} 15... Kf8 {[%clk 0:01:56.4]} 16. Bxh6+ {[%clk 0:01:58]} 16... Ke8
{[%clk 0:01:54]} 17. Qf6 {[%clk 0:01:54.4]} 17... Rh7 {[%clk 0:01:46.8]} 18.
Qf8# {[%clk 0:01:52.7]} 1-0

[Event "*** SCC Grand Prix: Titled Tuesday Blitz"]
[Site "Chess.com"]
[Date "2020.09.08"]
[Round "1"]
[White "valeriocarnicelli"]
[Black "akanga001"]
[Result "1-0"]
[WhiteElo "2476"]
[BlackElo "1892"]
[TimeControl "180+1"]
[EndTime "10:03:12 PDT"]
[Termination "valeriocarnicelli won by checkmate"]

1. e4 {[%clk 0:03:00.9]} 1... c6 {[%clk 0:02:58.2]} 2. Nc3 {[%clk 0:02:59.6]}
2... d5 {[%clk 0:02:58.2]} 3. Nf3 {[%clk 0:02:59.6]} 3... dxe4 {[%clk
0:02:58.7]} 4. Nxe4 {[%clk 0:02:59.8]} 4... Nf6 {[%clk 0:02:59.1]} 5. Nxf6+
{[%clk 0:02:59.8]} 5... gxf6 {[%clk 0:02:59.8]} 6. d4 {[%clk 0:02:58.4]} 6...
Bg4 {[%clk 0:02:59.3]} 7. c3 {[%clk 0:02:53.8]} 7... f5 {[%clk 0:02:57.8]} 8. g3
{[%clk 0:02:53.2]} 8... Bg7 {[%clk 0:02:53.5]} 9. Bg2 {[%clk 0:02:53.1]} 9...
Nd7 {[%clk 0:02:51.6]} 10. Qc2 {[%clk 0:02:50.5]} 10... e6 {[%clk 0:02:48.9]}
11. O-O {[%clk 0:02:50.1]} 11... Qb6 {[%clk 0:02:47.4]} 12. Re1 {[%clk
0:02:49.6]} 12... O-O-O {[%clk 0:02:45.8]} 13. a4 {[%clk 0:02:48.4]} 13... a5
{[%clk 0:02:44.3]} 14. Bf4 {[%clk 0:02:43.6]} 14... Nf6 {[%clk 0:02:32.1]} 15.
Ne5 {[%clk 0:02:36.1]} 15... Bh5 {[%clk 0:02:31.8]} 16. b4 {[%clk 0:02:32.6]}
16... Ne4 {[%clk 0:02:26.4]} 17. Nc4 {[%clk 0:02:27.3]} 17... Qa6 {[%clk
0:02:15.5]} 18. b5 {[%clk 0:02:07.6]} 18... cxb5 {[%clk 0:02:03.1]} 19. axb5
{[%clk 0:02:07.7]} 19... Qxb5 {[%clk 0:02:01.1]} 20. Rxa5 {[%clk 0:02:07.4]}
20... Qc6 {[%clk 0:01:58.9]} 21. Bxe4 {[%clk 0:02:03.3]} 21... fxe4 {[%clk
0:01:57.1]} 22. Rc5 {[%clk 0:02:02.5]} 22... Bg6 {[%clk 0:01:48.4]} 23. Nb6#
{[%clk 0:02:01.2]} 1-0

[Event "*** SCC Grand Prix: Titled Tuesday Blitz"]
[Site "Chess.com"]
[Date "2020.09.08"]
[Round "1"]
[White "Duhless"]
[Black "DvaHrasta"]
[Result "0-1"]
[WhiteElo "2976"]
[BlackElo "2481"]
[TimeControl "180+1"]
[EndTime "10:03:15 PDT"]
[Termination "DvaHrasta won by resignation"]

1. e4 {[%clk 0:02:54.6]} 1... c6 {[%clk 0:02:59.6]} 2. d4 {[%clk 0:02:53.7]}
2... d5 {[%clk 0:02:59.4]} 3. e5 {[%clk 0:02:54.6]} 3... c5 {[%clk 0:02:59.2]}
4. dxc5 {[%clk 0:02:53]} 4... e6 {[%clk 0:02:59.2]} 5. Nf3 {[%clk 0:02:51.7]}
5... Bxc5 {[%clk 0:02:58.9]} 6. Bd3 {[%clk 0:02:52.6]} 6... Ne7 {[%clk
0:02:58.2]} 7. O-O {[%clk 0:02:53.1]} 7... Nbc6 {[%clk 0:02:55.3]} 8. Nbd2
{[%clk 0:02:53]} 8... Ng6 {[%clk 0:02:54.3]} 9. Nb3 {[%clk 0:02:53.2]} 9... Bb6
{[%clk 0:02:52.7]} 10. Re1 {[%clk 0:02:53.7]} 10... a5 {[%clk 0:02:51]} 11. c3
{[%clk 0:02:52.9]} 11... a4 {[%clk 0:02:43.7]} 12. Nbd4 {[%clk 0:02:52.3]} 12...
Bd7 {[%clk 0:02:35.9]} 13. Bg5 {[%clk 0:02:49.6]} 13... Qb8 {[%clk 0:02:31.1]}
14. Qe2 {[%clk 0:02:45.6]} 14... Bc7 {[%clk 0:02:23.1]} 15. Nb5 {[%clk
0:02:41.2]} 15... Bxe5 {[%clk 0:02:01.4]} 16. Bxg6 {[%clk 0:02:02.5]} 16... hxg6
{[%clk 0:01:51.4]} 17. Nxe5 {[%clk 0:02:01.2]} 17... f6 {[%clk 0:01:43.1]} 18.
Nxd7 {[%clk 0:01:59.6]} 18... Qxh2+ {[%clk 0:01:40.8]} 0-1

[Event "*** SCC Grand Prix: Titled Tuesday Blitz"]
[Site "Chess.com"]
[Date "2020.09.08"]
[Round "1"]
[White "Godzillator"]
[Black "manitodeplomo"]
[Result "1-0"]
[WhiteElo "2265"]
[BlackElo "2560"]
[TimeControl "180+1"]
[EndTime "10:03:37 PDT"]
[Termination "Godzillator won by resignation"]

1. d4 {[%clk 0:03:00.9]} 1... g6 {[%clk 0:02:58.6]} 2. c4 {[%clk 0:03:01.4]}
2... Bg7 {[%clk 0:02:56.6]} 3. e4 {[%clk 0:03:01.6]} 3... c5 {[%clk 0:02:56.9]}
4. d5 {[%clk 0:03:01.2]} 4... d6 {[%clk 0:02:55.9]} 5. Bd3 {[%clk 0:03:01.3]}
5... a6 {[%clk 0:02:56.8]} 6. a4 {[%clk 0:03:00.6]} 6... Nd7 {[%clk 0:02:54.7]}
7. Nf3 {[%clk 0:02:58.6]} 7... h6 {[%clk 0:02:54.4]} 8. Be3 {[%clk 0:02:57.3]}
8... g5 {[%clk 0:02:51.7]} 9. Qd2 {[%clk 0:02:52.5]} 9... Ne5 {[%clk 0:02:49.8]}
10. Nxe5 {[%clk 0:02:51.8]} 10... Bxe5 {[%clk 0:02:48.8]} 11. Nc3 {[%clk
0:02:51.3]} 11... Nf6 {[%clk 0:02:48.3]} 12. h3 {[%clk 0:02:48.7]} 12... Qa5
{[%clk 0:02:42.4]} 13. O-O {[%clk 0:02:47.2]} 13... Rg8 {[%clk 0:02:29.5]} 14.
f3 {[%clk 0:02:45.8]} 14... Bd7 {[%clk 0:02:26]} 15. Rfb1 {[%clk 0:02:42.8]}
15... O-O-O {[%clk 0:02:22]} 16. Ra2 {[%clk 0:02:35]} 16... Rg7 {[%clk 0:02:18]}
17. b4 {[%clk 0:02:32.6]} 17... cxb4 {[%clk 0:02:16.8]} 18. Ne2 {[%clk
0:02:31.8]} 18... Bc3 {[%clk 0:01:43.4]} 19. Nxc3 {[%clk 0:02:25.4]} 19... bxc3
{[%clk 0:01:44.3]} 20. Qc2 {[%clk 0:02:15.8]} 20... h5 {[%clk 0:01:30.5]} 21.
Bb6 {[%clk 0:02:15.4]} 21... Qxb6+ {[%clk 0:01:12.9]} 22. Rxb6 {[%clk
0:02:14.6]} 1-0

[Event "*** SCC Grand Prix: Titled Tuesday Blitz"]
[Site "Chess.com"]
[Date "2020.09.08"]
[Round "1"]
[White "pitopisback"]
[Black "GM_LOADING"]
[Result "0-1"]
[WhiteElo "2212"]
[BlackElo "2546"]
[TimeControl "180+1"]
[EndTime "10:03:41 PDT"]
[Termination "GM_LOADING won by resignation"]

1. d4 {[%clk 0:00:46.9]} 1... Nf6 {[%clk 0:02:58.7]} 2. c4 {[%clk 0:00:46.4]}
2... e6 {[%clk 0:02:59.2]} 3. Nc3 {[%clk 0:00:46.4]} 3... Bb4 {[%clk 0:02:59.8]}
4. f3 {[%clk 0:00:47]} 4... Nh5 {[%clk 0:02:53.5]} 5. Nh3 {[%clk 0:00:45.6]}
5... f5 {[%clk 0:02:53.3]} 6. Nf2 {[%clk 0:00:43]} 6... O-O {[%clk 0:02:52.8]}
7. e4 {[%clk 0:00:43.1]} 7... fxe4 {[%clk 0:02:51.9]} 8. fxe4 {[%clk 0:00:42.1]}
8... Nc6 {[%clk 0:02:50.6]} 9. Qxh5 {[%clk 0:00:41]} 9... Nxd4 {[%clk
0:02:49.1]} 10. Qd1 {[%clk 0:00:41.6]} 10... Bc5 {[%clk 0:02:44.7]} 11. Be3
{[%clk 0:00:40.3]} 11... e5 {[%clk 0:02:36.9]} 12. Na4 {[%clk 0:00:38.3]} 12...
Nc2+ {[%clk 0:02:35.2]} 13. Qxc2 {[%clk 0:00:38]} 13... Bxe3 {[%clk 0:02:35.8]}
14. Ng4 {[%clk 0:00:34.9]} 14... Qh4+ {[%clk 0:02:32.8]} 0-1

[Event "*** SCC Grand Prix: Titled Tuesday Blitz"]
[Site "Chess.com"]
[Date "2020.09.08"]
[Round "1"]
[White "Konavets"]
[Black "bazar-wokzal"]
[Result "1-0"]
[WhiteElo "3066"]
[BlackElo "2470"]
[TimeControl "180+1"]
[EndTime "10:04:01 PDT"]
[Termination "Konavets won by resignation"]

1. d4 {[%clk 0:02:57.9]} 1... Nf6 {[%clk 0:02:56.1]} 2. c4 {[%clk 0:02:56.6]}
2... Nc6 {[%clk 0:02:56]} 3. Nf3 {[%clk 0:02:56.1]} 3... e6 {[%clk 0:02:55.9]}
4. e3 {[%clk 0:02:56.1]} 4... Bb4+ {[%clk 0:02:55.6]} 5. Nbd2 {[%clk 0:02:54.1]}
5... a5 {[%clk 0:02:56.5]} 6. a3 {[%clk 0:02:53.4]} 6... Bxd2+ {[%clk
0:02:56.3]} 7. Nxd2 {[%clk 0:02:53.8]} 7... a4 {[%clk 0:02:55.4]} 8. Bd3 {[%clk
0:02:53.6]} 8... d5 {[%clk 0:02:39.9]} 9. O-O {[%clk 0:02:49.5]} 9... O-O {[%clk
0:02:37.8]} 10. cxd5 {[%clk 0:02:48.6]} 10... exd5 {[%clk 0:02:34.9]} 11. Bb5
{[%clk 0:02:48.2]} 11... Bg4 {[%clk 0:02:24.8]} 12. Qc2 {[%clk 0:02:46.7]} 12...
Ne7 {[%clk 0:02:14.3]} 13. Bxa4 {[%clk 0:02:45.8]} 13... c6 {[%clk 0:02:03.9]}
14. Bb3 {[%clk 0:02:40.6]} 14... Qd6 {[%clk 0:01:53.9]} 15. f3 {[%clk
0:02:40.4]} 15... Bf5 {[%clk 0:01:45.5]} 16. Qc3 {[%clk 0:02:34.3]} 16... Rfe8
{[%clk 0:01:41.9]} 17. Re1 {[%clk 0:02:34.3]} 17... Bg6 {[%clk 0:01:40]} 18. Nf1
{[%clk 0:02:32.5]} 18... Nf5 {[%clk 0:01:37.9]} 19. Bd2 {[%clk 0:02:29.3]} 19...
Re7 {[%clk 0:01:37.8]} 20. Qb4 {[%clk 0:02:28.4]} 20... Qe6 {[%clk 0:01:32.7]}
21. e4 {[%clk 0:02:27.2]} 1-0

[Event "*** SCC Grand Prix: Titled Tuesday Blitz"]
[Site "Chess.com"]
[Date "2020.09.08"]
[Round "1"]
[White "gagtemp"]
[Black "aNaartjieZA"]
[Result "0-1"]
[WhiteElo "1970"]
[BlackElo "2481"]
[TimeControl "180+1"]
[EndTime "10:04:21 PDT"]
[Termination "aNaartjieZA won by resignation"]

1. e4 {[%clk 0:02:58]} 1... e6 {[%clk 0:03:00]} 2. d4 {[%clk 0:02:56.7]} 2... d5
{[%clk 0:03:00.4]} 3. Nc3 {[%clk 0:02:56.3]} 3... Bb4 {[%clk 0:03:00.1]} 4. e5
{[%clk 0:02:55.4]} 4... c5 {[%clk 0:03:00.3]} 5. a3 {[%clk 0:02:55.4]} 5...
Bxc3+ {[%clk 0:03:00.7]} 6. bxc3 {[%clk 0:02:56.3]} 6... Ne7 {[%clk 0:03:01.1]}
7. Qg4 {[%clk 0:02:56.1]} 7... Qc7 {[%clk 0:03:01.3]} 8. Bd3 {[%clk 0:02:51.4]}
8... cxd4 {[%clk 0:03:00.5]} 9. Ne2 {[%clk 0:02:50.6]} 9... dxc3 {[%clk
0:02:59.9]} 10. Qxg7 {[%clk 0:02:49.7]} 10... Rg8 {[%clk 0:02:59.4]} 11. Qxh7
{[%clk 0:02:49.7]} 11... Nbc6 {[%clk 0:02:59.1]} 12. h4 {[%clk 0:02:39.7]} 12...
Nxe5 {[%clk 0:02:51.9]} 13. h5 {[%clk 0:02:15.8]} 13... Nxd3+ {[%clk 0:02:40.3]}
14. Qxd3 {[%clk 0:02:14.5]} 14... e5 {[%clk 0:02:39]} 15. h6 {[%clk 0:02:10.3]}
15... Bf5 {[%clk 0:02:29.1]} 16. Qxc3 {[%clk 0:01:55.7]} 16... Qxc3+ {[%clk
0:02:27]} 17. Nxc3 {[%clk 0:01:55.1]} 17... f6 {[%clk 0:02:18.2]} 18. Nb5 {[%clk
0:01:33.6]} 18... Kd7 {[%clk 0:02:12.9]} 19. Bb2 {[%clk 0:01:14.2]} 19... a6
{[%clk 0:02:10.1]} 20. Nc3 {[%clk 0:01:08.9]} 20... Rxg2 {[%clk 0:02:05.7]} 21.
O-O-O {[%clk 0:01:01.4]} 21... Ke6 {[%clk 0:01:59.3]} 22. f3 {[%clk 0:00:51.9]}
22... Rxc2+ {[%clk 0:01:56.1]} 0-1

[Event "*** SCC Grand Prix: Titled Tuesday Blitz"]
[Site "Chess.com"]
[Date "2020.09.08"]
[Round "1"]
[White "UCantHandleDenker"]
[Black "vvg2"]
[Result "1-0"]
[WhiteElo "2594"]
[BlackElo "2272"]
[TimeControl "180+1"]
[EndTime "10:04:29 PDT"]
[Termination "UCantHandleDenker won by resignation"]

1. Nf3 {[%clk 0:02:57.2]} 1... Nf6 {[%clk 0:02:59.8]} 2. g3 {[%clk 0:02:56.4]}
2... g6 {[%clk 0:02:59.9]} 3. Bg2 {[%clk 0:02:57]} 3... Bg7 {[%clk 0:03:00.3]}
4. O-O {[%clk 0:02:57.9]} 4... O-O {[%clk 0:03:00.1]} 5. d3 {[%clk 0:02:58.8]}
5... d5 {[%clk 0:02:59.8]} 6. Nbd2 {[%clk 0:02:59.4]} 6... c5 {[%clk 0:02:59.5]}
7. e4 {[%clk 0:03:00.1]} 7... Nc6 {[%clk 0:02:59.8]} 8. Re1 {[%clk 0:03:00.4]}
8... e5 {[%clk 0:02:52.9]} 9. exd5 {[%clk 0:02:59.7]} 9... Nxd5 {[%clk
0:02:51.9]} 10. a3 {[%clk 0:03:00.6]} 10... Re8 {[%clk 0:02:49.7]} 11. Rb1
{[%clk 0:03:00.8]} 11... Qc7 {[%clk 0:02:48.7]} 12. Ne4 {[%clk 0:03:00.2]} 12...
b6 {[%clk 0:02:45.4]} 13. c4 {[%clk 0:02:59.8]} 13... Nde7 {[%clk 0:02:44.1]}
14. b4 {[%clk 0:02:59.8]} 14... f5 {[%clk 0:02:41.4]} 15. Ned2 {[%clk
0:02:55.5]} 15... Bd7 {[%clk 0:02:35.5]} 16. b5 {[%clk 0:02:47.8]} 16... Nd4
{[%clk 0:02:27.4]} 17. Nxd4 {[%clk 0:02:47.1]} 17... cxd4 {[%clk 0:02:27.1]} 18.
Bxa8 {[%clk 0:02:42]} 18... Rxa8 {[%clk 0:02:27.8]} 19. a4 {[%clk 0:02:36.4]}
19... Rf8 {[%clk 0:02:17.1]} 20. Ba3 {[%clk 0:02:36]} 20... Bc8 {[%clk
0:02:16.3]} 21. Rc1 {[%clk 0:02:26.5]} 21... Bb7 {[%clk 0:02:14.5]} 22. c5
{[%clk 0:02:22.1]} 22... bxc5 {[%clk 0:02:07.7]} 23. Bxc5 {[%clk 0:02:20.8]}
23... Qd7 {[%clk 0:02:04.8]} 24. Bxe7 {[%clk 0:02:17.3]} 24... Qxe7 {[%clk
0:02:04.1]} 25. Qb3+ {[%clk 0:02:17]} 25... Kh8 {[%clk 0:02:03.2]} 26. b6 {[%clk
0:02:12.5]} 26... f4 {[%clk 0:01:53.1]} 27. Rc7 {[%clk 0:02:08.2]} 27... Qf6
{[%clk 0:01:48.5]} 28. g4 {[%clk 0:02:03.5]} 28... Qh4 {[%clk 0:01:32.7]} 29.
Rxb7 {[%clk 0:01:42.7]} 29... Qxg4+ {[%clk 0:01:32.2]} 30. Kh1 {[%clk
0:01:43.1]} 30... f3 {[%clk 0:01:24.7]} 31. Rg1 {[%clk 0:01:41.7]} 31... Qf4
{[%clk 0:01:24.2]} 32. Ne4 {[%clk 0:01:37.7]} 1-0

[Event "*** SCC Grand Prix: Titled Tuesday Blitz"]
[Site "Chess.com"]
[Date "2020.09.08"]
[Round "1"]
[White "ChessAurochs"]
[Black "fabianvivasz"]
[Result "0-1"]
[WhiteElo "2595"]
[BlackElo "2303"]
[TimeControl "180+1"]
[EndTime "10:04:37 PDT"]
[Termination "fabianvivasz won by checkmate"]

1. e4 {[%clk 0:03:00.9]} 1... e5 {[%clk 0:02:58.3]} 2. Nf3 {[%clk 0:03:00.9]}
2... Nc6 {[%clk 0:02:56.9]} 3. Bc4 {[%clk 0:03:00.8]} 3... Nf6 {[%clk
0:02:55.9]} 4. d3 {[%clk 0:02:57.6]} 4... Be7 {[%clk 0:02:54.9]} 5. O-O {[%clk
0:02:57.1]} 5... O-O {[%clk 0:02:50.8]} 6. c3 {[%clk 0:02:55.8]} 6... d5 {[%clk
0:02:49.4]} 7. exd5 {[%clk 0:02:53.9]} 7... Nxd5 {[%clk 0:02:50.3]} 8. Bb3
{[%clk 0:02:52.2]} 8... Bg4 {[%clk 0:02:43.4]} 9. h3 {[%clk 0:02:48.6]} 9... Bh5
{[%clk 0:02:42.4]} 10. Re1 {[%clk 0:02:46]} 10... Kh8 {[%clk 0:02:28.3]} 11. g4
{[%clk 0:02:07.1]} 11... Bg6 {[%clk 0:02:26.4]} 12. Nxe5 {[%clk 0:02:07.2]}
12... Nxe5 {[%clk 0:02:26.6]} 13. Rxe5 {[%clk 0:02:08.1]} 13... c6 {[%clk
0:02:26.8]} 14. d4 {[%clk 0:02:03.3]} 14... Bd6 {[%clk 0:02:22.7]} 15. f4 {[%clk
0:01:47.3]} 15... Qh4 {[%clk 0:01:55.4]} 16. Qf1 {[%clk 0:01:18.8]} 16... Bxe5
{[%clk 0:01:48.3]} 17. fxe5 {[%clk 0:01:16.3]} 17... Be4 {[%clk 0:01:25.8]} 18.
Kh2 {[%clk 0:01:09.2]} 18... f5 {[%clk 0:01:18.3]} 19. g5 {[%clk 0:01:08.8]}
19... f4 {[%clk 0:01:15.2]} 20. Bxd5 {[%clk 0:01:03.2]} 20... Qg3# {[%clk
0:01:14.6]} 0-1

[Event "*** SCC Grand Prix: Titled Tuesday Blitz"]
[Site "Chess.com"]
[Date "2020.09.08"]
[Round "1"]
[White "Reader777"]
[Black "KyrgyzFighter"]
[Result "1-0"]
[WhiteElo "2665"]
[BlackElo "2332"]
[TimeControl "180+1"]
[EndTime "10:04:41 PDT"]
[Termination "Reader777 won by resignation"]

1. d4 {[%clk 0:03:00.9]} 1... d5 {[%clk 0:02:57.3]} 2. c4 {[%clk 0:03:00.9]}
2... c6 {[%clk 0:02:56.7]} 3. Nf3 {[%clk 0:03:00.5]} 3... Nf6 {[%clk 0:02:56.7]}
4. Nc3 {[%clk 0:03:00.4]} 4... a6 {[%clk 0:02:56.3]} 5. a4 {[%clk 0:02:59.6]}
5... dxc4 {[%clk 0:02:47.4]} 6. e3 {[%clk 0:02:55]} 6... e6 {[%clk 0:02:27.6]}
7. Bxc4 {[%clk 0:02:53.5]} 7... Bd6 {[%clk 0:02:27.8]} 8. e4 {[%clk 0:02:50.5]}
8... Bb4 {[%clk 0:02:25]} 9. e5 {[%clk 0:02:47.3]} 9... Ne4 {[%clk 0:02:24.8]}
10. Qd3 {[%clk 0:02:43.7]} 10... Nxc3 {[%clk 0:02:20.6]} 11. bxc3 {[%clk
0:02:43.4]} 11... Be7 {[%clk 0:02:21.1]} 12. O-O {[%clk 0:02:42.5]} 12... c5
{[%clk 0:02:15.6]} 13. d5 {[%clk 0:02:36.5]} 13... exd5 {[%clk 0:02:12.6]} 14.
Bxd5 {[%clk 0:02:35.6]} 14... O-O {[%clk 0:02:11.7]} 15. c4 {[%clk 0:02:33.4]}
15... Nc6 {[%clk 0:02:08.6]} 16. Bb2 {[%clk 0:02:28.5]} 16... Be6 {[%clk
0:02:06.2]} 17. Rad1 {[%clk 0:02:22.6]} 17... Nb4 {[%clk 0:02:05.4]} 18. Qe4
{[%clk 0:02:17.8]} 18... Bxd5 {[%clk 0:02:01.3]} 19. cxd5 {[%clk 0:02:17.2]}
19... Qa5 {[%clk 0:02:01.2]} 20. d6 {[%clk 0:02:13.6]} 20... Bd8 {[%clk
0:02:00.9]} 21. e6 {[%clk 0:02:12.7]} 21... fxe6 {[%clk 0:01:59]} 22. Qxe6+
{[%clk 0:02:11.5]} 22... Kh8 {[%clk 0:01:59.4]} 23. Ne5 {[%clk 0:02:07.6]} 23...
Bf6 {[%clk 0:01:58.8]} 24. d7 {[%clk 0:01:58.6]} 24... Nc6 {[%clk 0:01:37.1]}
25. Nf7+ {[%clk 0:01:34.7]} 25... Rxf7 {[%clk 0:01:26.2]} 26. Qxf7 {[%clk
0:01:33.8]} 26... Qd8 {[%clk 0:01:18.4]} 27. Bxf6 {[%clk 0:01:32.3]} 27... Qxf6
{[%clk 0:01:19.3]} 28. Qxf6 {[%clk 0:01:20.5]} 28... gxf6 {[%clk 0:01:20.2]} 29.
Rfe1 {[%clk 0:01:20.9]} 1-0

[Event "*** SCC Grand Prix: Titled Tuesday Blitz"]
[Site "Chess.com"]
[Date "2020.09.08"]
[Round "1"]
[White "azikom"]
[Black "nau64"]
[Result "1-0"]
[WhiteElo "2640"]
[BlackElo "2312"]
[TimeControl "180+1"]
[EndTime "10:04:45 PDT"]
[Termination "azikom won by resignation"]

1. e4 {[%clk 0:03:00.9]} 1... c5 {[%clk 0:02:59.7]} 2. Nc3 {[%clk 0:03:01.3]}
2... a6 {[%clk 0:02:59.1]} 3. d3 {[%clk 0:03:02.1]} 3... Nc6 {[%clk 0:02:58.7]}
4. g3 {[%clk 0:03:02.9]} 4... b5 {[%clk 0:02:57.8]} 5. Bg2 {[%clk 0:03:03.7]}
5... Bb7 {[%clk 0:02:58.1]} 6. f4 {[%clk 0:03:04.1]} 6... e6 {[%clk 0:02:57.6]}
7. Nf3 {[%clk 0:03:01.4]} 7... Be7 {[%clk 0:02:57.8]} 8. O-O {[%clk 0:03:01.9]}
8... d6 {[%clk 0:02:50.5]} 9. g4 {[%clk 0:03:00.1]} 9... h5 {[%clk 0:02:48.9]}
10. g5 {[%clk 0:02:58.8]} 10... Qc7 {[%clk 0:02:38.1]} 11. Ne2 {[%clk
0:02:56.7]} 11... f6 {[%clk 0:02:35.8]} 12. c3 {[%clk 0:02:52.8]} 12... fxg5
{[%clk 0:02:32.7]} 13. fxg5 {[%clk 0:02:50.5]} 13... O-O-O {[%clk 0:02:32.3]}
14. Nf4 {[%clk 0:02:49.6]} 14... Qb6 {[%clk 0:02:08.5]} 15. Nxe6 {[%clk
0:02:47.8]} 15... Re8 {[%clk 0:01:56.6]} 16. Nxg7 {[%clk 0:02:46.5]} 16... Rf8
{[%clk 0:01:55.9]} 17. Nf5 {[%clk 0:02:44.1]} 17... Ne5 {[%clk 0:01:25.4]} 18.
Nxe5 {[%clk 0:02:41.2]} 18... dxe5 {[%clk 0:01:24.8]} 19. Be3 {[%clk 0:02:39.8]}
19... Rd8 {[%clk 0:01:07.9]} 20. h4 {[%clk 0:02:33.4]} 20... Qc7 {[%clk
0:01:00.3]} 21. Qe2 {[%clk 0:02:30.7]} 21... Bf8 {[%clk 0:00:57]} 22. a4 {[%clk
0:02:26.2]} 22... Ne7 {[%clk 0:00:54]} 23. axb5 {[%clk 0:02:25.2]} 23... axb5
{[%clk 0:00:53.5]} 24. b4 {[%clk 0:02:14.1]} 24... Ng6 {[%clk 0:00:49.3]} 25.
bxc5 {[%clk 0:02:09.3]} 25... Nf4 {[%clk 0:00:44.5]} 26. Bxf4 {[%clk 0:02:04.8]}
26... exf4 {[%clk 0:00:42.5]} 27. d4 {[%clk 0:02:04.2]} 1-0

[Event "*** SCC Grand Prix: Titled Tuesday Blitz"]
[Site "Chess.com"]
[Date "2020.09.08"]
[Round "1"]
[White "JonahWillow"]
[Black "stepanosinovsky"]
[Result "1-0"]
[WhiteElo "2703"]
[BlackElo "2356"]
[TimeControl "180+1"]
[EndTime "10:04:56 PDT"]
[Termination "JonahWillow won on time"]

1. e4 {[%clk 0:03:00.6]} 1... e5 {[%clk 0:02:53.4]} 2. Nf3 {[%clk 0:03:00.6]}
2... Nc6 {[%clk 0:02:53.3]} 3. Nc3 {[%clk 0:03:00.7]} 3... Nf6 {[%clk 0:02:53]}
4. Bb5 {[%clk 0:03:00.6]} 4... Bb4 {[%clk 0:02:50.1]} 5. O-O {[%clk 0:03:00.5]}
5... O-O {[%clk 0:02:49.2]} 6. d3 {[%clk 0:03:01.1]} 6... d6 {[%clk 0:02:46.1]}
7. Bg5 {[%clk 0:03:00]} 7... Bxc3 {[%clk 0:02:43.7]} 8. bxc3 {[%clk 0:02:58.7]}
8... Qe7 {[%clk 0:02:39.3]} 9. Re1 {[%clk 0:02:57.9]} 9... Nd8 {[%clk
0:02:38.1]} 10. d4 {[%clk 0:02:57.6]} 10... Ne6 {[%clk 0:01:40.4]} 11. Bc1
{[%clk 0:02:55.2]} 11... Rd8 {[%clk 0:00:48.7]} 12. Bd3 {[%clk 0:02:52.9]} 12...
Nf8 {[%clk 0:00:43.7]} 13. Nh4 {[%clk 0:02:48.9]} 13... c6 {[%clk 0:00:17.1]}
14. Qf3 {[%clk 0:02:44.6]} 14... Bg4 {[%clk 0:00:11.6]} 15. Qg3 {[%clk
0:02:40.5]} 15... Qc7 {[%clk 0:00:09.2]} 16. Bg5 {[%clk 0:02:37.3]} 16... N8d7
{[%clk 0:00:06.3]} 17. f4 {[%clk 0:01:49.5]} 1-0